bitfinex-derivatives/quotes_SOLF0:USTF0_20241127
["timestamp","ask_amount","ask_price","bid_price","bid_amount"]
[1732694135420,2.06,234.7,234.58,12.60183993]
[1732694135914,2.06,234.7,234.58,10.46993993]
[1732694136118,2.1312,234.66,234.6,2.1318]
[1732694136317,2.06,234.65,234.6,2.1318]
[1732694136821,2.06,234.64,234.6,2.1318]
[1732694139329,2.1315,234.63,234.58,2.1319]
[1732694139828,2.06,234.64,234.55,0.17503]
[1732694140023,2.1319,234.6,234.55,0.17503]
[1732694140217,2.06,234.59,234.55,0.17503]
[1732694140826,12.52993993,234.59,234.55,0.17503]
[1732694141222,2.1321,234.56,234.55,0.17503]
[1732694142020,2.1319,234.59,234.55,0.17503]
[1732694142225,2.06,234.58,234.55,0.17503]
[1732694142730,2.06,234.57,234.55,0.17503]
[1732694142929,2.06,234.56,234.55,0.17503]
[1732694144531,2.06,234.56,234.51,2.1326]
[1732694144532,12.52993993,234.56,234.41,1.2742]
[1732694144727,12.52993993,234.56,234.42,2.77398446]
[1732694145031,12.52993993,234.56,234.43,2.77398446]
[1732694145227,12.52993993,234.56,234.44,2.77398446]
[1732694145429,12.52993993,234.56,234.45,1.0669171]
[1732694145730,12.52993993,234.56,234.46,1.0669171]
[1732694145926,2.1324,234.53,234.48,2.1329]
[1732694146322,2.1324,234.53,234.46,2.133]
[1732694146632,2.1324,234.53,234.41,1.2742]
[1732694146834,12.52993993,234.56,234.42,1.70718074]
[1732694147131,12.52993993,234.56,234.43,1.70718074]
[1732694147324,12.52993993,234.56,234.44,1.06698796]
[1732694147529,12.52993993,234.56,234.45,1.06698796]
[1732694147731,12.52993993,234.56,234.46,1.06698796]
[1732694147929,2.1324,234.54,234.47,1.06698796]
[1732694148129,33.26,234.66,234.41,1.2742]
[1732694148430,10.46993993,234.61,234.44,10.46993993]
[1732694148632,10.46993993,234.61,234.45,2.77420752]
[1732694148840,10.46993993,234.61,234.46,2.77420752]
[1732694149027,2.06,234.6,234.47,2.77420752]
[1732694149226,2.1322,234.56,234.5,2.1327]
[1732694149439,2.06,234.55,234.44,10.46993993]
[1732694149742,10.46993993,234.61,234.45,2.7739891]
[1732694149743,2.06,234.54,234.45,2.7739891]
[1732694150035,2.06,234.53,234.46,2.77398909]
[1732694150235,2.06,234.53,234.47,1.06691888]
[1732694150438,4.1924,234.53,234.48,3.19981888]
[1732694150627,4.1924,234.53,234.49,1.06691888]
[1732694150835,2.06,234.53,234.44,10.46993993]
[1732694151032,2.06,234.53,234.45,2.77407614]
[1732694151235,2.06,234.53,234.44,10.46993993]
[1732694151236,2.06,234.53,234.46,2.77407614]
[1732694151434,2.06,234.53,234.49,2.1328]
[1732694151629,2.06,234.53,234.5,1.06695236]
[1732694151830,2.06,234.53,234.49,2.1328]
[1732694152141,2.06,234.53,234.5,1.06694799]
[1732694152437,2.06,234.53,234.48,2.1328]
[1732694152639,2.06,234.53,234.49,1.06693369]
[1732694152841,2.06,234.53,234.5,1.06693369]
[1732694153030,2.06,234.53,234.51,1.06693369]
[1732694153236,2.06,234.53,234.44,10.46993993]
[1732694153538,2.06,234.53,234.45,2.77388712]
[1732694153837,2.06,234.53,234.49,2.1327]
[1732694154039,2.06,234.53,234.5,1.06687966]
[1732694154337,2.06,234.53,234.51,1.06687966]
[1732694154530,2.06,234.53,234.44,10.46993993]
[1732694154733,2.06,234.53,234.45,2.77388712]
[1732694154928,2.06,234.53,234.46,2.77388712]
[1732694155135,2.06,234.53,234.47,2.77388712]
[1732694155338,2.06,234.53,234.5,2.1327]
[1732694155533,2.06,234.53,234.44,10.46993993]
[1732694155734,2.06,234.53,234.45,2.77393174]
[1732694155930,2.06,234.53,234.46,2.77393174]
[1732694156145,2.06,234.53,234.47,2.77393174]
[1732694156340,2.06,234.53,234.48,2.77393174]
[1732694156537,2.06,234.53,234.49,1.06689682]
[1732694156736,2.06,234.53,234.44,10.46993993]
[1732694156737,2.06,234.53,234.52,2.1325]
[1732694159544,2.06,234.53,234.49,6.70787341]
[1732694159844,2.06,234.53,234.5,1.06688118]
[1732694160039,2.06,234.53,234.49,6.70787341]
[1732694160243,2.06,234.53,234.5,1.06688098]
[1732694160435,2.06,234.53,234.41,1.39570763]
[1732694160436,1.2352,234.65,234.51,6.70787341]
[1732694160738,33.26,234.66,234.58,6.70787341]
[1732694160739,2.06,234.64,234.58,6.70787341]
[1732694160946,4.1914,234.64,234.59,2.1318]
[1732694161147,2.06,234.64,234.6,6.70787341]
[1732694162442,2.06,234.64,234.61,2.1317]
[1732694162644,2.1312,234.66,234.61,2.1317]
[1732694162841,10.47110984,234.72,234.57,10.47110984]
[1732694162842,2.06,234.65,234.57,10.47110984]
[1732694163043,2.06,234.64,234.57,10.47110984]
[1732694163247,2.06,234.64,234.58,1.06645053]
[1732694163442,2.06,234.64,234.59,1.06645053]
[1732694163746,2.06,234.64,234.57,10.47110984]
[1732694163942,10.47110984,234.72,234.58,1.06644901]
[1732694164250,2.06,234.71,234.59,1.06644901]
[1732694164443,2.06,234.71,234.57,10.47110984]
[1732694164640,2.1312,234.66,234.61,2.1316]
[1732694164946,2.06,234.65,234.54,10.47110984]
[1732694165245,2.06,234.64,234.59,2.1318]
[1732694165444,2.06,234.64,234.54,10.47110984]
[1732694165644,2.06,234.64,234.55,1.06647993]
[1732694165838,2.06,234.64,234.56,1.06647993]
[1732694166144,2.06,234.64,234.54,10.47110984]
[1732694166343,2.06,234.64,234.57,2.132]
[1732694166646,2.06,234.64,234.54,10.47110984]
[1732694166848,2.06,234.64,234.55,1.06645637]
[1732694167143,2.06,234.64,234.61,2.1317]
[1732694168544,2.06,234.64,234.57,10.47110984]
[1732694168850,2.06,234.64,234.58,1.06638939]
[1732694169043,2.06,234.64,234.57,10.47110984]
[1732694169246,2.06,234.64,234.62,2.1315]
[1732694169447,2.06,234.64,234.57,10.47110984]
[1732694169745,1.2295,234.77,234.68,2.131]
[1732694169746,2.06,234.71,234.68,2.131]
[1732694169944,2.06,234.73,234.65,0.63]
[1732694170145,2.06,234.74,234.65,0.63]
[1732694170446,2.06,234.74,234.7,2.1309]
[1732694170645,2.06,234.74,234.65,0.63]
[1732694171746,4.1905,234.74,234.65,0.63]
[1732694172151,2.06,234.74,234.69,2.1309]
[1732694172347,2.1301,234.79,234.66,10.47110984]
[1732694172546,1.3263,234.83,234.66,10.47110984]
[1732694172547,2.06,234.78,234.66,10.47110984]
[1732694173653,2.06,234.78,234.69,2.1309]
[1732694173851,2.06,234.78,234.66,10.47110984]
[1732694174254,2.06,234.78,234.72,2.1307]
[1732694175147,2.06,234.78,234.66,10.47110984]
[1732694175350,10.47110984,234.76,234.61,3.8763]
[1732694176049,10.47110984,234.73,234.61,3.8763]
[1732694176252,10.47110984,234.67,234.51,1.7061183]
[1732694176447,2.06,234.66,234.52,10.47110984]
[1732694177053,2.06,234.66,234.51,1.2028]
[1732694177054,2.06,234.66,234.55,10.47110984]
[1732694177961,2.06,234.66,234.6,2.1317]
[1732694178160,2.06,234.66,234.55,10.47110984]
[1732694178552,2.06,234.66,234.63,2.1315]
[1732694179258,2.06,234.66,234.55,10.47110984]
[1732694179460,2.1309,234.71,234.64,2.1314]
[1732694179655,2.06,234.7,234.59,1.2091]
[1732694179856,2.06,234.7,234.68,2.131]
[1732694181653,2.06,234.7,234.61,2.1316]
[1732694181860,2.06,234.7,234.6,1.2274]
[1732694182556,2.1311,234.68,234.63,2.1315]
[1732694184863,2.1311,234.67,234.6,1.2274]
[1732694186261,2.1311,234.67,234.62,2.1316]
[1732694187466,12.53110984,234.7,234.54,10.47110984]
[1732694187768,12.53110984,234.7,234.54,11.72620984]
[1732694188162,2.131,234.69,234.54,11.72620984]
[1732694188562,12.53110984,234.7,234.54,11.72620984]
[1732694188768,2.1311,234.68,234.54,11.72620984]
[1732694190369,12.53110984,234.7,234.62,2.1315]
[1732694190370,2.1312,234.67,234.62,2.1315]
[1732694190565,12.53110984,234.7,234.54,11.72620984]
[1732694191166,2.1312,234.66,234.61,2.1316]
[1732694191365,2.06,234.65,234.54,11.72620984]
[1732694191570,2.06,234.64,234.54,11.72620984]
[1732694192168,2.06,234.64,234.57,10.47110984]
[1732694192365,2.06,234.64,234.59,2.1319]
[1732694192561,2.06,234.64,234.57,10.47110984]
[1732694194169,2.06,234.64,234.62,2.1315]
[1732694194370,2.06,234.64,234.57,10.47110984]
[1732694195174,2.06,234.64,234.63,2.1315]
[1732694196277,2.1309,234.7,234.65,2.1313]
[1732694196472,2.06,234.71,234.6,10.47110984]
[1732694197078,2.06,234.72,234.63,10.47110984]
[1732694197273,10.47110984,234.79,234.63,10.47110984]
[1732694197478,2.1305,234.75,234.71,2.1308]
[1732694198273,2.1305,234.75,234.69,2.1309]
[1732694198478,2.06,234.74,234.64,3.8667]
[1732694198678,4.1905,234.74,234.64,3.8667]
[1732694199080,4.1905,234.74,234.7,2.1308]
[1732694199281,2.06,234.74,234.7,2.1308]
[1732694200181,2.06,234.74,234.64,3.8667]
[1732694200380,2.06,234.74,234.59,10.47110984]
[1732694200679,2.06,234.74,234.6,1.06619938]
[1732694200880,2.06,234.74,234.59,10.47110984]
[1732694201081,2.1308,234.71,234.6,1.06618115]
[1732694201283,2.1308,234.71,234.59,10.47110984]
[1732694201484,2.1308,234.71,234.6,1.06619354]
[1732694201685,2.1308,234.71,234.59,10.47110984]
[1732694201883,2.1308,234.71,234.65,2.1312]
[1732694202382,2.1308,234.71,234.59,10.47110984]
[1732694202582,2.06,234.74,234.67,2.1311]
[1732694202782,2.06,234.74,234.59,10.47110984]
[1732694202982,2.06,234.74,234.62,10.47110984]
[1732694203687,2.1306,234.73,234.65,2.1313]
[1732694203888,2.1306,234.73,234.62,10.47110984]
[1732694204282,2.06,234.74,234.62,10.47110984]
[1732694204486,2.06,234.74,234.63,1.06613542]
[1732694204686,2.06,234.74,234.62,10.47110984]
[1732694204890,2.06,234.73,234.63,1.06613542]
[1732694205087,2.06,234.73,234.62,10.47110984]
[1732694205287,2.06,234.73,234.63,1.06613195]
[1732694205483,2.06,234.73,234.62,10.47110984]
[1732694205689,2.06,234.73,234.63,1.0660686]
[1732694205889,2.06,234.73,234.62,10.47110984]
[1732694206087,2.06,234.73,234.63,1.06610649]
[1732694206392,2.06,234.73,234.62,10.47110984]
[1732694206588,2.06,234.73,234.67,2.131]
[1732694206791,4.1906,234.73,234.62,10.47110984]
[1732694207092,4.1906,234.73,234.63,1.06611651]
[1732694207388,4.1906,234.73,234.62,10.47110984]
[1732694207588,4.1906,234.73,234.63,1.06610799]
[1732694207788,4.1906,234.73,234.64,1.06610799]
[1732694207988,4.1906,234.73,234.62,10.47110984]
[1732694208195,4.1906,234.73,234.63,1.06609357]
[1732694208385,4.1906,234.73,234.68,2.131]
[1732694209388,2.06,234.73,234.62,10.47110984]
[1732694209587,2.06,234.73,234.63,1.06610701]
[1732694209892,4.1906,234.73,234.68,2.131]
[1732694210192,2.06,234.73,234.62,12.53110984]
[1732694210395,2.06,234.73,234.69,2.1309]
[1732694210693,2.06,234.73,234.62,12.53110984]
[1732694210891,2.06,234.73,234.7,2.1309]
[1732694212293,2.06,234.73,234.71,2.1307]
[1732694213595,2.1447781,234.82,234.72,2.1307]
[1732694213596,2.1302,234.78,234.72,2.1307]
[1732694213797,2.06,234.77,234.69,6.69699137]
[1732694214692,4.1903,234.77,234.71,2.1307]
[1732694214897,4.1903,234.77,234.7,6.69699137]
[1732694215702,2.06,234.77,234.72,2.1307]
[1732694216395,2.06,234.77,234.7,6.69699137]
[1732694216596,2.06,234.77,234.73,2.1306]
[1732694216802,8.82709137,234.78,234.73,2.1306]
[1732694216999,2.06,234.77,234.7,6.69699137]
[1732694217499,4.1902,234.77,234.7,6.69699137]
[1732694217896,2.1302,234.77,234.7,6.69699137]
[1732694218102,4.1902,234.77,234.7,6.69699137]
[1732694218302,2.06,234.8,234.74,6.69699137]
[1732694218598,2.06,234.82,234.78,6.69699137]
[1732694218805,2.06,234.82,234.8,2.1299]
[1732694219001,2.06,234.82,234.78,6.69699137]
[1732694220302,2.06,234.82,234.79,2.13]
[1732694221202,2.06,234.83,234.78,6.69699137]
[1732694221506,2.06,234.83,234.77,6.69699137]
[1732694221905,2.06,234.83,234.79,2.13]
[1732694223805,2.06,234.83,234.76,2.1302]
[1732694224006,2.06,234.83,234.75,6.69699137]
[1732694224204,2.1298,234.82,234.75,6.69699137]
[1732694224403,2.1298,234.82,234.78,2.1301]
[1732694224708,2.06,234.83,234.78,2.1301]
[1732694226004,2.06,234.85,234.82,6.69699137]
[1732694226197,7.99399137,234.93,234.85,6.69699137]
[1732694226198,2.06,234.86,234.85,6.69699137]
[1732694226403,2.06,234.87,234.85,6.69699137]
[1732694226598,2.06,234.87,234.83,6.69699137]
[1732694227404,2.06,234.87,234.75,2.06]
[1732694227606,2.06,234.87,234.83,6.69699137]
[1732694228107,2.06,234.87,234.85,6.69699137]
[1732694228308,2.06,234.87,234.75,2.06]
[1732694228309,2.06,234.87,234.81,10.44918106]
[1732694229299,2.06,234.87,234.84,2.1295]
[1732694229905,2.06,234.87,234.81,10.44918106]
[1732694230100,2.06,234.87,234.85,2.1295]
[1732694230302,2.06,234.87,234.81,10.44918106]
[1732694230501,33.26,234.95,234.84,10.44918106]
[1732694230705,2.06,234.94,234.84,10.44918106]
[1732694231106,2.1288,234.93,234.87,2.1293]
[1732694231507,2.06,234.94,234.87,2.1293]
[1732694231904,2.06,234.94,234.84,10.44918106]
[1732694232104,2.1288,234.93,234.88,2.1292]
[1732694234111,2.06,234.94,234.81,3.7099]
[1732694234508,2.06,234.94,234.81,2.5115]
[1732694235217,10.44918106,234.92,234.74,2.06]
[1732694235408,10.44918106,234.92,234.76,10.44918106]
[1732694235809,10.44918106,234.92,234.81,2.1299]
[1732694236008,2.06,234.94,234.76,10.44918106]
[1732694236207,10.44918106,234.93,234.79,10.44918106]
[1732694237212,10.44918106,234.93,234.82,2.1298]
[1732694237514,12.50918106,234.94,234.82,2.1298]
[1732694237714,8.27519937,234.93,234.82,2.1298]
[1732694237911,2.1294,234.87,234.82,2.1298]
[1732694238216,2.06,234.86,234.82,2.1298]
[1732694238616,4.1894,234.86,234.81,2.1298]
[1732694239116,4.1894,234.86,234.76,10.44918106]
[1732694239312,4.1894,234.86,234.82,2.1298]
[1732694239519,4.1894,234.86,234.76,10.44918106]
[1732694241217,4.1894,234.86,234.81,2.1298]
[1732694242312,2.06,234.86,234.76,10.44918106]
[1732694242615,2.06,234.86,234.74,2.5315]
[1732694243024,2.1299,234.81,234.74,2.5315]
[1732694243216,2.06,234.86,234.74,2.5315]
[1732694243915,10.44918106,234.84,234.66,12.15441318]
[1732694244116,10.44918106,234.8,234.66,12.97038106]
[1732694244318,10.44918106,234.8,234.66,11.64628106]
[1732694244319,2.06,234.79,234.66,11.64628106]
[1732694244513,2.1303,234.77,234.67,1.2269]
[1732694245121,2.1303,234.77,234.72,2.1307]
[1732694248825,2.1304,234.76,234.69,2.1309]
[1732694249022,2.06,234.79,234.69,2.1309]
[1732694249930,2.1308,234.71,234.64,1.2685]
[1732694250129,2.06,234.7,234.64,1.2685]
[1732694250326,2.06,234.7,234.65,6.69918574]
[1732694250821,4.1909,234.7,234.65,6.69918574]
[1732694251831,2.06,234.7,234.65,8.83048574]
[1732694253027,2.06,234.7,234.63,6.69918574]
[1732694253628,6.69918574,234.69,234.61,6.69918574]
[1732694254330,2.1311,234.68,234.62,24.8786835]
[1732694254530,6.69918574,234.67,234.59,6.69918574]
[1732694255224,6.69918574,234.67,234.61,6.69918574]
[1732694255835,6.69918574,234.67,234.61,8.83088574]
[1732694256034,6.69918574,234.67,234.61,6.69918574]
[1732694256228,2.06,234.69,234.63,6.69918574]
[1732694256538,2.06,234.69,234.65,6.69918574]
[1732694257139,4.191,234.69,234.65,6.69918574]
[1732694257436,4.191,234.69,234.64,2.1314]
[1732694258138,8.75918574,234.69,234.61,6.69918574]
[1732694258335,2.1312,234.66,234.6,6.69918574]
[1732694259036,2.06,234.68,234.63,6.69918574]
[1732694259235,2.06,234.68,234.58,3.8555]
[1732694259236,2.06,234.68,234.65,6.69918574]
[1732694260328,2.06,234.68,234.65,8.83048574]
[1732694260938,2.06,234.68,234.65,2.1313]
[1732694261837,2.06,234.68,234.64,2.1314]
[1732694262640,2.06,234.68,234.65,2.1313]
[1732694264237,2.06,234.68,234.64,2.1314]
[1732694264843,2.06,234.68,234.65,2.1313]
[1732694265243,2.06,234.68,234.61,6.69918574]
[1732694265446,2.06,234.68,234.62,2.1316]
[1732694265747,2.06,234.68,234.6,6.69918574]
[1732694266140,4.1911,234.68,234.63,2.1315]
[1732694266341,2.06,234.68,234.62,6.69918574]
[1732694266936,4.191,234.68,234.62,6.69918574]
[1732694267736,2.1311,234.67,234.63,2.1315]
[1732694268343,6.69918574,234.67,234.59,6.69918574]
[1732694268540,6.69918574,234.67,234.58,1.27]
[1732694268748,6.69918574,234.67,234.59,6.69918574]
[1732694269940,2.1314,234.64,234.58,3.4019]
[1732694270145,2.06,234.63,234.58,7.96918574]
[1732694270944,2.06,234.63,234.6,2.1318]
[1732694275054,2.06,234.63,234.62,2.1316]
[1732694276047,4.2593,234.84,234.62,6.69918574]
[1732694276248,6.69918574,234.73,234.65,6.69918574]
[1732694276450,2.06,234.72,234.65,6.69918574]
[1732694276653,6.69918574,234.71,234.65,2.1313]
[1732694277147,6.69918574,234.69,234.64,0.63]
[1732694277956,2.06,234.72,234.66,6.69918574]
[1732694278145,4.2579,234.92,234.66,6.69918574]
[1732694278146,6.69918574,234.74,234.66,6.69918574]
[1732694278346,2.06,234.73,234.66,6.69918574]
[1732694279256,2.06,234.73,234.69,2.131]
[1732694279452,2.06,234.76,234.68,6.69918574]
[1732694280256,8.75918574,234.76,234.68,6.69918574]
[1732694280456,2.06,234.76,234.68,6.69918574]
[1732694280952,6.69918574,234.81,234.72,6.69918574]
[1732694281150,2.06,234.8,234.72,6.69918574]
[1732694281350,2.06,234.8,234.74,6.69918574]
[1732694282357,2.06,234.8,234.76,2.1302]
[1732694283453,2.06,234.8,234.74,6.69918574]
[1732694283658,2.06,234.81,234.76,6.69918574]
[1732694283955,6.69918574,234.84,234.76,6.69918574]
[1732694283956,2.06,234.84,234.76,6.69918574]
[1732694284555,2.06,234.83,234.76,6.69918574]
[1732694284756,2.06,234.83,234.78,6.69918574]
[1732694285159,2.06,234.83,234.81,2.1299]
[1732694287855,2.06,234.83,234.8,2.1299]
[1732694288454,2.06,234.83,234.79,6.69918574]
[1732694288655,2.06,234.83,234.81,2.1299]
[1732694288850,2.06,234.83,234.79,6.69918574]
[1732694289153,8.75918574,234.88,234.84,2.1296]
[1732694291765,2.47,234.99,234.83,6.69918574]
[1732694291766,2.06,234.9,234.83,6.69918574]
[1732694292062,2.06,234.91,234.88,2.1292]
[1732694292261,2.06,234.91,234.83,6.69918574]
[1732694292459,2.06,234.91,234.86,2.1293]
[1732694292664,2.06,234.91,234.83,6.69918574]
[1732694292962,6.69918574,234.9,234.87,2.1293]
[1732694293166,6.69918574,234.88,234.79,1.2779]
[1732694293463,6.69918574,234.86,234.79,1.2779]
[1732694294365,6.69918574,234.86,234.81,2.1299]
[1732694294563,6.69918574,234.84,234.81,2.1299]
[1732694296670,6.69918574,234.82,234.67,6.69918574]
[1732694296966,6.69918574,234.75,234.67,6.69918574]
[1732694297164,2.06,234.74,234.67,6.69918574]
[1732694298269,2.06,234.74,234.7,2.1309]
[1732694300963,2.06,234.74,234.64,3.749]
[1732694300964,6.69918574,234.71,234.64,3.749]
[1732694301760,2.06,234.7,234.64,3.749]
[1732694302265,2.06,234.7,234.66,2.1312]
[1732694304671,2.06,234.7,234.54,2.06]
[1732694304872,2.06,234.7,234.61,6.69918574]
[1732694305268,8.83018574,234.69,234.62,2.1315]
[1732694305463,6.69918574,234.67,234.58,6.69918574]
[1732694306067,6.69918574,234.67,234.57,1.2233]
[1732694306380,8.83028574,234.67,234.61,2.1316]
[1732694307072,2.1314,234.64,234.57,1.2233]
[1732694307267,6.69918574,234.6,234.5,2.77249356]
[1732694307474,6.69918574,234.58,234.5,6.69918574]
[1732694307769,2.06,234.57,234.5,6.69918574]
[1732694308369,2.06,234.57,234.53,2.1324]
[1732694308771,2.06,234.57,234.46,3.8121]
[1732694309072,6.69918574,234.52,234.46,3.8121]
[1732694309268,2.06,234.51,234.46,3.8121]
[1732694309874,2.06,234.51,234.49,2.1328]
[1732694311270,2.06,234.53,234.51,2.1326]
[1732694311466,18.75779372,234.69,234.46,3.8121]
[1732694311467,2.06,234.54,234.46,3.8121]
[1732694312672,2.06,234.54,234.52,2.1325]
[1732694314779,2.1319,234.59,234.52,2.1325]
[1732694314968,2.06,234.58,234.52,2.1325]
[1732694315168,4.192,234.58,234.52,2.1325]
[1732694315770,2.06,234.58,234.52,2.1325]
[1732694316874,2.06,234.58,234.46,3.8121]
[1732694317677,4.192,234.58,234.46,3.8121]
[1732694318279,12.54321175,234.58,234.37,0.12082304]
[1732694318478,2.1323,234.55,234.41,10.48321175]
[1732694318676,2.1323,234.55,234.42,1.06668356]
[1732694319073,2.1323,234.55,234.41,10.48321175]
[1732694319276,2.1323,234.54,234.42,1.06672556]
[1732694319473,2.06,234.53,234.41,10.48321175]
[1732694319673,2.06,234.53,234.42,1.06676193]
[1732694319876,2.06,234.53,234.41,10.48321175]
[1732694321280,2.06,234.53,234.39,3.8404]
[1732694321482,4.1924,234.53,234.43,2.1332]
[1732694321678,4.1924,234.53,234.39,3.8404]
[1732694321884,4.1924,234.53,234.4,1.06683116]
[1732694322078,4.1924,234.53,234.39,4.02327]
[1732694322278,4.1924,234.53,234.4,1.06682551]
[1732694322483,4.1924,234.53,234.39,4.02327]
[1732694322780,4.1924,234.53,234.4,1.06682478]
[1732694323085,2.1324,234.53,234.39,4.02327]
[1732694323284,10.48321175,234.55,234.41,10.48321175]
[1732694323481,10.48321175,234.55,234.42,1.06682778]
[1732694323482,2.06,234.52,234.42,1.06682778]
[1732694323687,2.06,234.52,234.41,10.48321175]
[1732694323884,2.06,234.52,234.42,1.06673332]
[1732694324083,2.1323,234.55,234.41,10.48321175]
[1732694324288,2.06,234.54,234.42,1.06673864]
[1732694324487,2.06,234.54,234.48,2.1328]
[1732694324782,2.06,234.54,234.41,10.48321175]
[1732694324988,2.06,234.54,234.45,2.1331]
[1732694325184,2.06,234.54,234.41,10.48321175]
[1732694325385,2.06,234.54,234.42,1.06674879]
[1732694325590,2.06,234.54,234.41,10.48321175]
[1732694325786,2.06,234.54,234.42,1.06674879]
[1732694326091,2.06,234.54,234.41,10.48321175]
[1732694326290,4.1923,234.54,234.48,2.1328]
[1732694327489,2.06,234.54,234.49,2.1327]
[1732694327881,2.06,234.54,234.41,10.48321175]
[1732694328088,2.06,234.54,234.5,2.1326]
[1732694328482,2.06,234.54,234.41,10.48321175]
[1732694328483,2.06,234.54,234.47,2.133]
[1732694328689,10.48321175,234.58,234.44,10.48321175]
[1732694328894,2.06,234.54,234.44,10.48321175]
[1732694329094,2.06,234.54,234.52,2.1324]
[1732694330288,2.06,234.54,234.47,2.133]
[1732694330487,2.06,234.54,234.44,10.48321175]
[1732694330697,2.06,234.54,234.45,1.0666458]
[1732694330888,2.06,234.54,234.44,10.48321175]
[1732694331383,2.06,234.54,234.52,2.1324]
[1732694333096,2.06,234.54,234.53,2.1324]
[1732694337195,2.06,234.55,234.5,6.70799058]
[1732694337390,2.06,234.55,234.54,2.1323]
[1732694337691,2.06,234.55,234.39,4.02327]
[1732694337692,2.06,234.55,234.4,6.70799058]
[1732694337896,2.06,234.55,234.41,1.06708919]
[1732694337897,6.70799058,234.48,234.41,1.06708919]
[1732694338198,6.70799058,234.48,234.44,2.1331]
[1732694338199,2.06,234.47,234.44,2.1331]
[1732694338997,2.06,234.47,234.45,2.1331]
[1732694339198,2.06,234.47,234.39,4.02327]
[1732694339404,2.06,234.47,234.42,6.70799058]
[1732694339598,2.06,234.47,234.46,2.133]
[1732694340700,2.06,234.51,234.48,2.1328]
[1732694342399,8.76799058,234.51,234.43,2.1333]
[1732694342596,8.76799058,234.51,234.44,2.77425234]
[1732694342895,6.70799058,234.47,234.43,2.1333]
[1732694343089,2.06,234.46,234.44,1.06715749]
[1732694343294,6.70799058,234.45,234.39,0.18287]
[1732694343492,6.70799058,234.45,234.4,2.77466218]
[1732694343690,6.70799058,234.45,234.39,2.31647]
[1732694343691,2.06,234.46,234.41,1.06717776]
[1732694343899,2.06,234.46,234.39,0.18287]
[1732694344102,2.06,234.46,234.4,2.77486057]
[1732694344301,2.06,234.46,234.41,1.06725408]
[1732694344504,2.06,234.46,234.42,1.06725408]
[1732694344707,10.49010871,234.5,234.39,0.18287]
[1732694345000,2.06,234.49,234.4,2.77487223]
[1732694345201,2.06,234.49,234.41,1.06725855]
[1732694345401,2.06,234.49,234.42,1.06726033]
[1732694345601,2.06,234.49,234.43,1.06726033]
[1732694345801,2.06,234.49,234.39,0.18287]
[1732694345997,4.1928,234.49,234.42,2.1334]
[1732694346198,4.1928,234.49,234.43,1.06724386]
[1732694346398,4.1928,234.49,234.42,2.1334]
[1732694346598,4.1928,234.49,234.43,1.06724361]
[1732694346792,4.1928,234.49,234.42,2.1334]
[1732694346997,4.1928,234.49,234.43,1.06724021]
[1732694347206,4.1928,234.49,234.42,2.1334]
[1732694347406,4.1928,234.49,234.43,1.06725138]
[1732694347702,4.1928,234.49,234.42,2.1334]
[1732694347904,4.1928,234.49,234.43,1.06724093]
[1732694348094,4.1928,234.49,234.42,2.1334]
[1732694348294,4.1928,234.49,234.43,1.06724093]
[1732694348503,2.1328,234.49,234.42,2.1334]
[1732694348705,2.06,234.48,234.43,1.06724716]
[1732694348899,2.06,234.48,234.44,1.06724716]
[1732694349105,2.06,234.48,234.39,0.18287]
[1732694349410,10.49010871,234.5,234.4,2.77471248]
[1732694349607,2.06,234.49,234.4,1.70751537]
[1732694349801,2.06,234.49,234.41,1.70749869]